fUST/lending_fUST_20240521
["ID","MTS","AMOUNT","RATE_DAILY","PERIOD"]
[327640070,1716265849006,-500.0,0.00046575,40]
[327640071,1716265849016,-500.0,0.00046575,40]
[327640072,1716265849025,-673.73,0.00046575,40]
[327640073,1716265849034,-500.0,0.00046575,40]
[327640074,1716265849043,-500.0,0.00046575,40]
[327640075,1716265849052,-512.97379326,0.00046575,40]
[327640076,1716265849062,-151.0,0.00046575,7]
[327640077,1716265849071,-500.0,0.00046575,40]
[327640078,1716265849080,-151.0,0.00046575,7]
[327640079,1716265849090,-151.0,0.00046575,7]
[327640080,1716265849099,-156.084049,0.00046575,7]
[327640081,1716265849109,-500.0,0.00046575,40]
[327640082,1716265849118,-560.81,0.00046575,40]
[327640083,1716265849127,-500.0,0.00046575,40]
[327640084,1716265849137,-500.0,0.00046575,40]
[327640085,1716265849146,-500.0,0.00046575,40]
[327640086,1716265849155,-500.0,0.00046575,40]
[327640087,1716265849165,-500.0,0.00046575,40]
[327640088,1716265849175,-500.0,0.00046575,40]
[327640089,1716265849184,-500.0,0.00046575,20]
[327640090,1716265849193,-500.0,0.00046575,40]
[327640091,1716265849202,-500.0,0.00046575,40]
[327640092,1716265849211,-514.95380785,0.00046575,40]
[327640093,1716265849221,-500.0,0.00046575,40]
[327640094,1716265849230,-300.0,0.00046575,7]
[327640095,1716265849242,-500.0,0.00046575,40]
[327640096,1716265849252,-500.0,0.00046575,40]
[327640097,1716265849261,-500.0,0.00046575,40]
[327640098,1716265849271,-500.0,0.00046575,40]
[327640099,1716265849280,-500.0,0.00046575,40]
[327640100,1716265849289,-500.0,0.00046575,40]
[327640101,1716265849299,-500.0,0.00046575,40]
[327640102,1716265849309,-500.0,0.00046575,40]
[327640103,1716265849318,-500.0,0.00046575,40]
[327640104,1716265849327,-500.0,0.00046575,40]
[327640105,1716265849336,-500.0,0.00046575,40]
[327640106,1716265849345,-222.85001169,0.00046575,40]
[327640107,1716265849355,-640.33,0.00046575,40]
[327640108,1716265849364,-500.0,0.00046575,40]
[327640109,1716265849373,-500.0,0.00046575,40]
[327640110,1716265849383,-375.12485937,0.00046575,40]
[327640111,1716265849392,-500.0,0.00046575,40]
[327640112,1716265849401,-500.0,0.00046575,40]
[327640113,1716265849410,-500.0,0.00046575,40]
[327640114,1716265849420,-500.0,0.00046575,40]
[327640115,1716265849429,-500.0,0.00046575,40]
[327640116,1716265849439,-500.0,0.00046575,40]
[327640117,1716265849448,-750.28,0.00046575,40]
[327640118,1716265849457,-500.0,0.00046575,40]
[327640119,1716265849466,-681.68,0.00046575,40]
[327640120,1716265849475,-725.98,0.00046575,40]
[327640121,1716265849485,-554.30366033,0.00046575,40]
[327640122,1716265849494,-663.15,0.00046575,40]
[327640123,1716265849503,-903.08,0.00046575,40]
[327640124,1716265849512,-500.0,0.00046575,40]
[327640125,1716265849522,-870.71,0.00046575,40]
[327640126,1716265849532,-500.0,0.00046575,40]
[327640127,1716265849541,-575.75,0.00046575,40]
[327640128,1716265849550,-151.0,0.00046575,7]
[327640129,1716265849559,-500.0,0.00046575,40]
[327640130,1716265849568,-200.336156,0.00046575,7]
[327640131,1716265849578,-500.0,0.00046575,40]
[327640132,1716265849587,-694.66,0.00046575,40]
[327640133,1716265849596,-814.93,0.00046575,40]
[327640134,1716265849607,-715.69,0.00046575,40]
[327640135,1716265849616,-500.0,0.00046575,40]
[327640136,1716265849626,-523.19,0.00046575,40]
[327640137,1716265849635,-500.0,0.00046575,40]
[327640138,1716265849644,-564.92,0.00046575,40]
[327640139,1716265849654,-500.0,0.00046575,40]
[327640140,1716265849671,-517.19826349,0.00046575,40]
[327640141,1716265849681,-789.41,0.00046575,40]
[327640142,1716265849690,-151.0,0.00046575,7]
[327640143,1716265849699,-151.0,0.00046575,7]
[327640144,1716265849710,-153.420198,0.00046575,7]
[327640145,1716265849720,-580.43,0.00046575,40]
[327640146,1716265849730,-500.0,0.00046575,40]
[327640147,1716265849742,-500.0,0.00046575,40]
[327640148,1716265849751,-731.66,0.00046575,40]
[327640149,1716265849761,-911.91,0.00046575,40]
[327640150,1716265849770,-662.26,0.00046575,40]
[327640151,1716265849779,-500.0,0.00046575,40]
[327640152,1716265849789,-752.49,0.00046575,40]
[327640153,1716265849798,-647.65,0.00046575,40]
[327640154,1716265849808,-500.0,0.00046575,40]
[327640155,1716265849817,-500.0,0.00046575,40]
[327640156,1716265849826,-500.0,0.00046575,40]
[327640157,1716265849836,-500.0,0.00046575,40]
[327640158,1716265849845,-500.0,0.00046575,40]
[327640159,1716265849854,-500.0,0.00046575,40]
[327640160,1716265849864,-500.0,0.00046575,40]
[327640161,1716265849873,-500.0,0.00046575,40]
[327640162,1716265849882,-640.78,0.00046575,40]
[327640163,1716265849892,-677.1,0.00046575,40]
[327640164,1716265849901,-500.0,0.00046575,40]
[327640165,1716265849911,-500.0,0.00046575,40]
[327640166,1716265849920,-710.07,0.00046575,40]
[327640167,1716265849929,-512.91,0.00046575,40]
[327640168,1716265849938,-431.02106662,0.00046575,40]
[327640169,1716265849948,-500.0,0.00046575,40]
[327640170,1716265849957,-571.07,0.00046575,40]
[327640171,1716265849966,-500.0,0.00046575,40]
[327640172,1716265849975,-866.58,0.00046575,40]
[327640173,1716265849986,-556.64,0.00046575,40]
[327640174,1716265849996,-500.0,0.00046575,40]
[327640175,1716265850005,-215.677262,0.00046575,7]
[327640176,1716265850014,-215.677262,0.00046575,7]
[327640177,1716265850024,-500.0,0.00046575,40]
[327640178,1716265850033,-215.677262,0.00046575,7]
[327640179,1716265850043,-500.0,0.00046575,40]
[327640180,1716265850052,-215.677262,0.00046575,7]
[327640181,1716265850061,-500.0,0.00046575,40]
[327640182,1716265850070,-215.677262,0.00046575,7]
[327640183,1716265850079,-215.677262,0.00046575,7]
[327640184,1716265850088,-215.677262,0.00046575,7]
[327640185,1716265850097,-500.0,0.00046575,40]
[327640186,1716265850106,-215.677262,0.00046575,7]
[327640187,1716265850115,-560.05,0.00046575,40]
[327640188,1716265850124,-215.677262,0.00046575,7]
[327640189,1716265850133,-215.677262,0.00046575,7]
[327640190,1716265850143,-215.677262,0.00046575,7]
[327640191,1716265850152,-215.677262,0.00046575,7]
[327640192,1716265850162,-215.677262,0.00046575,7]
[327640193,1716265850171,-500.0,0.00046575,40]
[327640194,1716265850181,-215.677262,0.00046575,7]
[327640195,1716265850191,-500.0,0.00046575,40]
[327640196,1716265850200,-500.0,0.00046575,40]
[327640197,1716265850209,-500.0,0.00046575,40]
[327640198,1716265850219,-554.75,0.00046575,40]
[327640199,1716265850228,-151.0,0.00046575,7]
[327640200,1716265850238,-151.270271,0.00046575,7]
[327640201,1716265850247,-500.0,0.00046575,40]
[327640202,1716265850257,-752.36,0.00046575,40]
[327640203,1716265850266,-153.508453,0.00046575,7]
[327640204,1716265850276,-880.28,0.00046575,40]
[327640205,1716265850285,-500.0,0.00046575,40]
[327640206,1716265850295,-500.0,0.00046575,40]
[327640207,1716265850304,-500.0,0.00046575,40]
[327640208,1716265850315,-500.0,0.00046575,40]
[327640209,1716265850324,-500.0,0.00046575,40]
[327640210,1716265850333,-500.0,0.00046575,40]
[327640211,1716265850344,-500.0,0.00046575,40]
[327640212,1716265850354,-573.97,0.00046575,40]
[327640213,1716265850364,-500.0,0.00046575,40]
[327640214,1716265850373,-500.0,0.00046575,40]
[327640215,1716265850383,-500.0,0.00046575,40]
[327640216,1716265850392,-723.65,0.00046575,40]
[327640217,1716265850401,-500.0,0.00046575,40]
[327640218,1716265850411,-500.0,0.00046575,40]
[327640219,1716265850420,-500.0,0.00046575,40]
[327640220,1716265850549,-532.72156397,0.00046575,40]
[327640221,1716265850559,-500.0,0.00046575,40]
[327640222,1716265850568,-500.0,0.00046575,40]
[327640223,1716265850577,-500.0,0.00046575,40]
[327640224,1716265850587,-500.0,0.00046575,2]
[327640225,1716265850597,-500.0,0.00046575,40]
[327640226,1716265850606,-500.0,0.00046575,40]
[327640227,1716265850615,-500.0,0.00046575,40]
[327640228,1716265850625,-500.0,0.00046575,40]
[327640229,1716265850634,-500.0,0.00046575,120]
[327640230,1716265850644,-500.0,0.00046575,40]
[327640231,1716265850653,-500.0,0.00046575,40]
[327640232,1716265850664,-500.0,0.00046575,40]
[327640233,1716265850677,-624.03,0.00046575,40]
[327640234,1716265850686,-500.0,0.00046575,40]
[327640235,1716265850696,-500.0,0.00046575,40]
[327640236,1716265850706,-985.6,0.00046575,40]
[327640237,1716265850715,-2821.62,0.00046575,40]
[327640238,1716265850724,-500.0,0.00046575,40]
[327640239,1716265850734,-500.0,0.00046575,40]
[327640240,1716265850743,-504.73453657,0.00046575,40]
[327640241,1716265850756,-500.0,0.00046575,40]
[327640242,1716265850766,-500.0,0.00046575,40]
[327640243,1716265850776,-500.0,0.00046575,40]
[327640244,1716265850785,-697.44,0.00046575,40]
[327640245,1716265850794,-514.19,0.00046575,40]
[327640246,1716265850803,-500.0,0.00046575,14]
[327640247,1716265850813,-610.44815803,0.00046575,40]
[327640248,1716265850822,-500.0,0.00046575,40]
[327640249,1716265850831,-573.31026929,0.00046575,40]
[327640250,1716265850840,-500.0,0.00046575,40]
[327640251,1716265850849,-500.0,0.00046575,40]
[327640252,1716265850859,-549.88,0.00046575,40]
[327640253,1716265850868,-500.0,0.00046575,40]
[327640254,1716265850877,-500.0,0.00046575,40]
[327640255,1716265850886,-1960.92,0.00046575,40]
[327640256,1716265850896,-500.0,0.00046575,40]
[327640257,1716265850906,-690.73,0.00046575,40]
[327640258,1716265850915,-500.0,0.00046575,40]
[327640259,1716265850925,-516.8682355,0.00046575,41]
[327640260,1716265850934,-151.0,0.00046575,7]
[327640261,1716265850943,-151.0,0.00046575,7]
[327640262,1716265850953,-151.0,0.00046575,7]
[327640263,1716265850963,-151.0,0.00046575,7]
[327640264,1716265850972,-110.56115886,0.00046575,7]
[327640435,1716266485734,156.4485373,9.999e-05,2]
[327640475,1716266810856,281.6214751,9.999e-05,2]
[327640545,1716267033236,-187.74765007,0.00018894,2]
[327640546,1716267033246,-156.4485373,0.00018895,2]
[327640547,1716267033256,-155.04496304,0.00018896,2]
[327640548,1716267033266,-162.560857,0.00019055,2]
[327640549,1716267033276,-24900.0,0.00019056,2]
[327640550,1716267033285,-168.927922,0.00019178,2]
[327640551,1716267033297,-236.56094657,0.00019727,2]
[327640552,1716267033306,-231.32930537,0.00019727,2]
[327640553,1716267033316,-181.25970541,0.00019727,2]
[327640554,1716267033325,-1320.70670575,0.00019728,2]
[327640556,1716267033335,-310.01860223,0.00020682,2]
[327640558,1716267033345,-909.25169157,0.00020911,2]
[327640560,1716267033355,-190.47110459,0.00020912,2]
[327640562,1716267033364,-285.61810326,0.00020912,2]
[327640564,1716267033373,-774.27960681,0.00020912,2]
[327640566,1716267033383,-442.83480005,0.00020912,2]
[327640568,1716267033392,-180.08352177,0.00020912,2]
[327640570,1716267033402,-8385.63511976,0.00020912,7]
[327640572,1716267033411,-10316.02586592,0.00020912,2]
[327640583,1716267037928,-169.13599969,0.00020912,2]
[327640585,1716267037938,-168.148609,0.00022036,2]
[327640587,1716267037948,-159.913282,0.00024384,2]
[327640589,1716267037957,-1051.41298464,0.000266,2]
[327640591,1716267037966,-1000.0,0.00027397,2]
[327640593,1716267037976,-159.913282,0.0003189,2]
[327640595,1716267037986,-154.99557805,0.00034744,2]
[327640597,1716267037996,-295.0851961,0.00035616,120]
[327640599,1716267038006,-1333.66675002,0.00038,7]
[327640601,1716267038016,-159.913282,0.00039397,2]
[327640603,1716267038025,-727.63836466,0.000399,30]
[327640607,1716267038059,-500.60002895,0.000399,30]
[327640755,1716267041678,-5797.44150683,0.000399,30]
[327640756,1716267041688,-170.41271955,0.000399,2]
[327640757,1716267041698,-267.80597266,0.00039999,31]
[327640758,1716267041708,-1000.0,0.00039999,2]
[327640760,1716267041717,-247.05293977,0.0004,4]
[327640761,1716267041726,-1631.17774528,0.0004,4]
[327640763,1716267041736,-2105.04084939,0.0004,15]
[327640800,1716267051846,-156.4485373,0.00020912,2]
[327640801,1716267051855,-162.560857,0.00020913,2]
[327640802,1716267051865,-154.27674757,0.00021936,4]
[327640803,1716267051875,-170.0,0.0003,2]
[327640804,1716267051886,-170.0,0.00033,2]
[327640805,1716267051896,-170.0,0.000399,2]
[327640806,1716267051905,-170.0,0.000399,2]
[327640807,1716267051915,-451.05596648,0.0004,15]
[327640808,1716267051927,-6853.01640178,0.0004,15]
[327640810,1716267051939,-10289.31492781,0.0004,15]
[327640811,1716267051948,-6302.03648377,0.0004,2]
[327640812,1716267051958,-191.26065056,0.0004,30]
[327640813,1716267051968,-1281.63843206,0.0004,15]
[327640814,1716267051978,-292.04015197,0.0004,30]
[327640815,1716267051986,-186.84275551,0.0004,30]
[327640816,1716267051997,-1454.90918184,0.0004028,11]
[327640817,1716267052007,-204.4918902,0.00040569,2]
[327640818,1716267052017,-204.4918902,0.00040569,2]
[327640819,1716267052027,-204.4918902,0.00040569,2]
[327640820,1716267052036,-204.4918902,0.00040569,2]
[327640821,1716267052046,-204.4918902,0.00040581,2]
[327640822,1716267052057,-153.0,0.00040581,2]
[327640823,1716267052066,-153.0,0.00040581,2]
[327640824,1716267052075,-204.4918902,0.00040581,2]
[327640825,1716267052085,-204.4918902,0.00040581,2]
[327640826,1716267052094,-153.0,0.00040581,2]
[327640827,1716267052104,-153.0,0.00040581,2]
[327640828,1716267052115,-204.4918902,0.00040581,2]
[327640829,1716267052124,-153.0,0.00040773,2]
[327640830,1716267052135,-2044.27,0.000409,3]
[327640831,1716267052144,-153.0,0.0004091,2]
[327640832,1716267052153,-293.4286417,0.0004091,2]
[327640833,1716267052162,-153.0,0.0004091,2]
[327640834,1716267052171,-487.925296,0.0004091,2]
[327640835,1716267052181,-153.0,0.0004091,2]
[327640836,1716267052190,-204.4918902,0.0004091,2]
[327640837,1716267052199,-153.0,0.0004091,2]
[327640838,1716267052208,-153.0,0.0004091,2]
[327640839,1716267052217,-153.0,0.0004091,2]
[327640840,1716267052227,-153.0,0.0004091,2]
[327640841,1716267052236,-153.0,0.0004091,2]
[327640842,1716267052245,-153.0,0.0004091,2]
[327640843,1716267052255,-153.0,0.0004091,2]
[327640844,1716267052264,-153.0,0.0004091,2]
[327640845,1716267052274,-153.0,0.0004091,2]
[327640846,1716267052283,-153.0,0.0004091,2]
[327640847,1716267052292,-153.0,0.0004091,2]
[327640848,1716267052303,-153.0,0.0004091,2]
[327640849,1716267052313,-153.0,0.0004091,2]
[327640850,1716267052322,-153.0,0.0004091,2]
[327640851,1716267052332,-153.0,0.0004091,2]
[327640852,1716267052342,-500.0,0.00041096,31]
[327640853,1716267052351,-500.0,0.00041096,31]
[327640854,1716267052361,-504.44346537,0.00041096,31]
[327640855,1716267052370,-160.3769078,0.00041184,2]
[327640856,1716267052380,-170.41271952,0.00041513,2]
[327640857,1716267052389,-153.0,0.0004172,2]
[327640858,1716267052399,-153.0,0.0004172,2]
[327640859,1716267052409,-153.0,0.0004172,2]
[327640860,1716267052418,-153.0,0.0004172,2]
[327640861,1716267052427,-153.0,0.0004172,2]
[327640862,1716267052437,-153.0,0.0004172,2]
[327640863,1716267052447,-153.0,0.0004172,2]
[327640864,1716267052455,-153.0,0.0004172,2]
[327640865,1716267052465,-308.8772826,0.0004172,2]
[327640866,1716267052474,-204.4918902,0.0004172,2]
[327640867,1716267052483,-204.4918902,0.0004172,2]
[327640868,1716267052492,-204.4918902,0.0004172,2]
[327640869,1716267052501,-204.4918902,0.0004172,2]
[327640870,1716267052511,-204.4918902,0.0004172,2]
[327640871,1716267052520,-204.4918902,0.0004172,2]
[327640872,1716267052531,-204.4918902,0.0004172,2]
[327640873,1716267052542,-204.4918902,0.0004172,2]
[327640874,1716267052551,-204.4918902,0.0004172,2]
[327640875,1716267052564,-204.4918902,0.0004172,2]
[327640876,1716267052576,-204.4918902,0.0004172,2]
[327640877,1716267052586,-204.4918902,0.0004172,2]
[327640878,1716267052596,-204.4918902,0.0004172,2]
[327640879,1716267052605,-204.4918902,0.0004172,2]
[327640880,1716267052615,-204.4918902,0.0004172,2]
[327640881,1716267052624,-204.4918902,0.0004172,2]
[327640882,1716267052633,-204.4918902,0.0004172,2]
[327640883,1716267052642,-204.4918902,0.0004172,2]
[327640884,1716267052652,-204.4918902,0.0004172,2]
[327640885,1716267052661,-204.4918902,0.0004172,2]
[327640886,1716267052672,-204.4918902,0.0004172,2]
[327640887,1716267052683,-204.4918902,0.0004172,2]
[327640888,1716267052694,-204.4918902,0.0004172,2]
[327640889,1716267052703,-204.4918902,0.0004172,2]
[327640890,1716267052714,-204.4918902,0.0004172,2]
[327640891,1716267052725,-204.4918902,0.0004172,2]
[327640892,1716267052735,-204.4918902,0.0004172,2]
[327640893,1716267052745,-1000.0,0.00041731,2]
[327640894,1716267052754,-153.0,0.00041732,2]
[327640895,1716267052763,-153.0,0.00041732,2]
[327640896,1716267052773,-153.0,0.00041732,2]
[327640897,1716267052783,-153.0,0.00041732,2]
[327640898,1716267052793,-153.0,0.00041732,2]
[327640899,1716267052804,-153.0,0.00041732,2]
[327640900,1716267052816,-153.0,0.00041732,2]
[327640901,1716267052825,-153.0,0.00041732,2]
[327640902,1716267052834,-153.0,0.00041732,2]
[327640903,1716267052843,-153.0,0.00041732,2]
[327640904,1716267052853,-153.0,0.00041732,2]
[327640905,1716267052862,-153.0,0.00041732,2]
[327640906,1716267052871,-153.0,0.00041732,2]
[327640907,1716267052880,-153.0,0.00041732,2]
[327640908,1716267052890,-153.0,0.00041732,2]
[327640909,1716267052899,-153.0,0.00041732,2]
[327640910,1716267052908,-161.2297948,0.00041732,2]
[327640911,1716267052917,-153.0,0.00041732,2]
[327640912,1716267052927,-153.0,0.00041732,2]
[327640913,1716267052936,-153.0,0.00041732,2]
[327640914,1716267052945,-153.0,0.00041732,2]
[327640915,1716267052955,-153.0,0.00041732,2]
[327640916,1716267052964,-153.0,0.00041732,2]
[327640917,1716267052973,-153.0,0.00041732,2]
[327640918,1716267052983,-153.0,0.00041732,2]
[327640919,1716267052994,-153.0,0.00041732,2]
[327640920,1716267053004,-153.0,0.00041732,2]
[327640921,1716267053013,-14565.94338419,0.00041918,2]
[327640922,1716267053023,-369.23305399,0.00042,30]
[327640923,1716267053032,-155.04651395,0.00042465,7]
[327640924,1716267053041,-1454.90918184,0.0004256,11]
[327640925,1716267053051,-8398.16,0.0004288,3]
[327640926,1716267053067,-1000.0,0.00042889,2]
[327640927,1716267053076,-1000.0,0.00042889,2]
[327640928,1716267053085,-1000.0,0.00042889,2]
[327640929,1716267053094,-1000.0,0.00042889,2]
[327640930,1716267053104,-5724.02,0.00042889,7]
[327640931,1716267053114,-5724.02,0.00042889,7]
[327640932,1716267053123,-5724.02,0.00042889,7]
[327640933,1716267053134,-2900.99468208,0.00042889,7]
[327640936,1716267069642,702.80759732,9.999e-05,2]
[327640941,1716267114648,155.04341216,9.999e-05,2]
[327640942,1716267115718,155.11788981,0.0001,2]
[327640943,1716267117268,3373.78266972,9.999e-05,2]
[327640944,1716267119531,155.04341216,9.999e-05,2]
[327640945,1716267119585,1043.53548688,9.999e-05,2]
[327640946,1716267122929,410.5949292,9.999e-05,2]
[327640947,1716267123314,155.04341216,9.999e-05,2]
[327640948,1716267128627,302.38073973,9.999e-05,2]
[327640949,1716267131214,3373.78266972,9.999e-05,2]
[327640950,1716267131476,155.04341216,9.999e-05,2]
[327640951,1716267131742,1149.48846863,0.00015,2]
[327640952,1716267133838,155.04341216,9.999e-05,2]
[327640953,1716267135028,921.28647666,0.00014,2]
[327640955,1716267151232,3373.78266972,9.999e-05,2]
[327640956,1716267167239,1980.15332941,9.999e-05,2]
[327640957,1716267167268,393.86343686,9.999e-05,2]
[327640958,1716267252293,19256.26797269,9.999e-05,2]
[327640959,1716267268186,3597.098246,9.999e-05,2]
[327640962,1716267422293,156.45637506,9.999e-05,2]
[327640965,1716267565251,464.18496659,9.999e-05,2]
[327640966,1716267665194,942.90397425,0.00015,2]
[327640967,1716267676893,156.4485373,9.999e-05,2]
[327640968,1716267713636,1717.62384614,9.999e-05,2]
[327640969,1716267728808,155.04031048,9.999e-05,2]
[327640970,1716267746597,155.04031048,9.999e-05,2]
[327640980,1716267856641,24900.0,0.00015495,2]
[327640983,1716267892188,3978.76019136,0.00015495,2]
[327640984,1716267906196,3978.76019136,0.00015495,2]
[327640985,1716267913400,155.04031048,9.999e-05,2]
[327640986,1716267916257,285.83068385,0.00015495,2]
[327640987,1716267922193,3978.76019136,0.00015495,2]
[327640988,1716267934287,384.63769401,0.00015495,2]
[327640991,1716267940195,3978.76019136,0.00015495,2]
[327640992,1716267946185,155.04031048,0.0001534,2]
[327640993,1716267959490,157.08886238,0.0001534,2]
[327640994,1716267959522,3978.76019136,0.00015495,2]
[327640995,1716267976208,3978.76019136,0.00015495,2]
[327640996,1716267992217,3978.76019136,0.00015495,2]
[327640997,1716268014197,3978.76019136,0.00015495,2]
[327640998,1716268032199,3978.76019136,0.00015495,2]
[327641005,1716268050196,3978.76019136,0.00015495,2]
[327641006,1716268066198,3978.76019136,0.00015495,2]
[327641007,1716268084212,544.84252002,0.00015495,2]
[327641011,1716268118451,156.4485373,9.999e-05,2]
[327641014,1716268153282,942.90397425,0.00015,2]
[327641015,1716268230511,1306.541732,0.00015375,2]
[327641059,1716268232435,-45712.62995686,0.0001637,2]
[327641061,1716268232447,-2835.12,0.0001637,2]
[327641145,1716268238391,-702.11748921,0.00016368,2]
[327641146,1716268238403,-1699.79637419,0.00016368,2]
[327641147,1716268238414,-711.01633314,0.00016369,2]
[327641148,1716268242336,-8690.54193473,0.00016369,2]
[327641149,1716268242346,-6559.42804544,0.00016369,2]
[327641219,1716268243719,-4498.98680295,0.00016369,2]
[327641221,1716268243728,-19540.29496087,0.0001637,2]
[327641223,1716268243738,-156.4485373,0.00016371,2]
[327641224,1716268243747,-35622.72781875,0.00016371,2]
[327641227,1716268243757,-155.04496304,0.00016372,2]
[327641229,1716268243766,-8167.70207189,0.00016372,2]
[327641282,1716268365279,302.38073973,9.999e-05,2]
[327641283,1716268397597,24900.0,0.00015374,2]
[327641296,1716268737533,653.270866,0.00015372,2]
[327641297,1716268739603,953.99,0.00016,2]
[327641298,1716268870517,155.04031048,9.999e-05,2]
[327641299,1716268875133,156.4485373,9.999e-05,2]
[327641300,1716268983344,4224.07535635,0.00015925,2]
[327641309,1716269275030,326.635433,0.00015372,2]
[327641311,1716269353619,417.32360569,0.00015921,2]
[327641579,1716269444021,-155.0418613,0.00016271,2]
[327641581,1716269444031,-750.3987142,0.00016272,2]
[327641583,1716269444040,-59417.06053021,0.0001637,2]
[327641585,1716269444049,-763.93319824,0.00016371,2]
[327641587,1716269444058,-2226.2612344,0.00016371,2]
[327641589,1716269444067,-13183.09063898,0.00016371,2]
[327641591,1716269444076,-229.02885613,0.00016372,2]
[327641593,1716269444085,-946.2453178,0.00016374,2]
[327641595,1716269444094,-1225.48225603,0.00016411,2]
[327641597,1716269444106,-23674.51774397,0.00016411,2]
[327641599,1716269444115,-309.87591128,0.00016478,2]
[327641601,1716269444125,-209.13889284,0.00016494,2]
[327641603,1716269444134,-155.0418613,0.00016611,2]
[327641605,1716269444143,-4125.94972492,0.00016612,2]
[327641607,1716269444152,-180.2362435,0.0001691,2]
[327641609,1716269444161,-1718.55793535,0.00016911,2]
[327641611,1716269444170,-750.39871416,0.00016974,2]
[327641613,1716269444179,-750.39871416,0.00017675,2]
[327641615,1716269444188,-605.25426453,0.00017914,2]
[327641617,1716269444198,-310.06540393,0.00017928,2]
[327641619,1716269444207,-750.39871416,0.00018377,2]
[327641621,1716269444216,-511.07344122,0.000189,2]
[327641623,1716269444225,-2144.9916358,0.0001899,2]
[327641625,1716269444234,-6894.23889232,0.00019,2]
[327641627,1716269444243,-162.560857,0.00019077,2]
[327641629,1716269444252,-750.39871416,0.00019078,2]
[327641631,1716269444261,-209.30414397,0.00019176,2]
[327641633,1716269444270,-156.11707063,0.00019176,2]
[327641635,1716269444279,-1149.20206705,0.00019176,2]
[327641637,1716269444288,-14731.41380239,0.00019177,2]
[327641638,1716269444298,-7582.1026067,0.00019177,2]
[327641781,1716269446535,24900.0,0.00015372,2]
[327641923,1716269493316,189.96457126,0.000156,2]
[327641924,1716269493929,2115.17001779,9.999e-05,2]
[327641926,1716269501502,155.0418613,9.999e-05,2]
[327641928,1716269510646,155.0418613,9.999e-05,2]
[327641931,1716269516911,909.92037244,9.999e-05,2]
[327641933,1716269532512,155.0418613,9.999e-05,2]
[327641934,1716269532941,720.18654452,9.999e-05,2]
[327641935,1716269535029,522.78148972,9.999e-05,2]
[327641936,1716269548602,186.95436808,9.999e-05,2]
[327641937,1716269553492,528.62113532,9.999e-05,2]
[327641938,1716269556373,155.03720893,9.999e-05,2]
[327641939,1716269558489,702.80759732,9.999e-05,2]
[327641940,1716269566294,155.0356582,9.999e-05,2]
[327641941,1716269569084,1496.84971124,9.999e-05,2]
[327641942,1716269572253,155.0356582,9.999e-05,2]
[327641944,1716269594682,406.75114953,0.00015538,2]
[327641945,1716269595015,406.75114953,0.00015772,2]
[327641946,1716269604043,530.1570585,9.999e-05,2]
[327641948,1716269619159,155.03720893,9.999e-05,2]
[327641949,1716269621071,487.85550363,9.999e-05,2]
[327641958,1716269788615,535.01,0.0002651,120]
[327641964,1716269850950,406.75114953,0.00015999,2]
[327641965,1716269900331,163.317716,0.0001567,2]
[327641966,1716269914077,3373.78266972,0.0001567,2]
[327641967,1716269924894,19388.6664143,0.0001571,2]
[327641968,1716269960807,3373.78266972,0.0001567,2]
[327641969,1716269982586,3373.78266972,0.0001571,2]
[327641974,1716270000583,3373.78266972,0.0001571,2]
[327641975,1716270022698,1277.60084145,0.0001571,2]
[327641976,1716270038520,151.0,0.000157,2]
[327641977,1716270063776,155.0418613,9.999e-05,2]